fUST/lending_fUST_20250204
["ID","MTS","AMOUNT","RATE_DAILY","PERIOD"]
[351639644,1738680649368,-500.0,0.00016849,2]
[351639645,1738680649378,-1204.77,0.00016849,2]
[351639646,1738680649389,-500.0,0.00016849,2]
[351639647,1738680649399,-506.46905238,0.00016849,2]
[351639648,1738680649409,-880.63,0.00016849,2]
[351639649,1738680649419,-500.0,0.00016849,2]
[351639650,1738680649428,-1829.98,0.00016849,2]
[351639651,1738680649438,-500.0,0.00016849,2]
[351639652,1738680649448,-500.0,0.00016849,2]
[351639653,1738680649458,-500.0,0.00016849,2]
[351639654,1738680649468,-500.0,0.00016849,2]
[351639655,1738680649477,-500.0,0.00016849,2]
[351639656,1738680649487,-642.25683987,0.00016849,2]
[351639657,1738680649497,-500.0,0.00016849,2]
[351639658,1738680649507,-500.0,0.00016849,2]
[351639659,1738680649516,-506.3811406,0.00016849,2]
[351639660,1738680649526,-500.0,0.00016849,2]
[351639661,1738680649535,-500.0,0.00016849,2]
[351639662,1738680649545,-2810.39,0.00016849,2]
[351639663,1738680649554,-500.0,0.00016849,2]
[351639664,1738680649564,-1805.39,0.00016849,2]
[351639665,1738680649574,-8022.09,0.00016849,2]
[351639666,1738680649585,-500.0,0.00016849,2]
[351639667,1738680649594,-1713.77,0.00016849,2]
[351639668,1738680649604,-500.0,0.00016849,2]
[351639669,1738680649614,-12512.67,0.00016849,2]
[351639670,1738680649623,-500.0,0.00016849,2]
[351639671,1738680649633,-1368.93,0.00016849,2]
[351639672,1738680649647,-1365.65,0.00016849,2]
[351639673,1738680649657,-500.0,0.00016849,2]
[351639674,1738680649667,-1309.33,0.00016849,2]
[351639675,1738680649677,-500.0,0.00016849,2]
[351639676,1738680649687,-500.0,0.00016849,2]
[351639677,1738680649697,-500.0,0.00016849,2]
[351639678,1738680649707,-3808.05,0.00016849,2]
[351639679,1738680649717,-500.0,0.00016849,2]
[351639680,1738680649726,-643.47,0.00016849,2]
[351639681,1738680649737,-500.0,0.00016849,2]
[351639682,1738680649746,-500.0,0.00016849,2]
[351639683,1738680649755,-500.0,0.00016849,2]
[351639684,1738680649765,-539.93,0.00016849,2]
[351639685,1738680649775,-500.0,0.00016849,2]
[351639686,1738680649785,-500.0,0.00016849,2]
[351639687,1738680649794,-500.0,0.00016849,2]
[351639688,1738680649804,-2463.36,0.00016849,2]
[351639689,1738680649814,-500.0,0.00016849,2]
[351639690,1738680649823,-1787.01,0.00016849,2]
[351639691,1738680649834,-500.0,0.00016849,2]
[351639692,1738680649844,-500.0,0.00016849,2]
[351639693,1738680649853,-3139.64,0.00016849,2]
[351639694,1738680649863,-3415.22,0.00016849,2]
[351639695,1738680649873,-500.0,0.00016849,2]
[351639696,1738680649883,-4485.55,0.00016849,2]
[351639697,1738680649899,-765.54,0.00016849,2]
[351639698,1738680649909,-6198.42,0.00016849,2]
[351639699,1738680649919,-1904.81,0.00016849,2]
[351639700,1738680649928,-1584.76,0.00016849,2]
[351639701,1738680649939,-1313.56,0.00016849,2]
[351639702,1738680649948,-500.0,0.00016849,2]
[351639703,1738680649958,-850.88,0.00016849,2]
[351639704,1738680649967,-500.0,0.00016849,2]
[351639705,1738680649977,-500.0,0.00016849,2]
[351639706,1738680649987,-2058.31,0.00016849,2]
[351639707,1738680649997,-500.0,0.00016849,2]
[351639708,1738680650008,-500.0,0.00016849,2]
[351639709,1738680650022,-1171.46,0.00016849,2]
[351639710,1738680650031,-496.7,0.00016849,2]
[351639711,1738680650040,-1282.64,0.00016849,2]
[351639712,1738680650050,-500.0,0.00016849,2]
[351639713,1738680650061,-500.0,0.00016849,2]
[351639714,1738680650071,-500.0,0.00016849,2]
[351639715,1738680650081,-1934.6,0.00016849,2]
[351639716,1738680650091,-500.0,0.00016849,2]
[351639717,1738680650103,-3826.4,0.00016849,2]
[351639718,1738680650113,-17462.03,0.00016849,2]
[351639719,1738680650123,-416.66666667,0.00016849,2]
[351639720,1738680650133,-153.0,0.00016849,2]
[351639721,1738680650145,-153.0,0.00016849,2]
[351639722,1738680650154,-159.0185955,0.00016849,2]
[351639723,1738680650163,-3580.89276465,0.00016898,2]
[351639724,1738680650173,-500.0,0.00016904,2]
[351639725,1738680650183,-1224.86330337,0.00016918,2]
[351639726,1738680650192,-416.66666667,0.00016932,2]
[351639727,1738680650203,-641.67768934,0.0001695,2]
[351639728,1738680650215,-500.0,0.00016973,2]
[351639729,1738680650224,-500.0,0.00016973,2]
[351639730,1738680650235,-500.0,0.00016973,2]
[351639731,1738680650244,-500.0,0.00016973,2]
[351639732,1738680650254,-500.03815756,0.00016973,2]
[351639733,1738680650263,-500.0,0.00016973,2]
[351639734,1738680650272,-500.0,0.00016973,2]
[351639735,1738680650282,-500.0,0.00016973,2]
[351639736,1738680650292,-285.36716724,0.00016973,2]
[351639737,1738680650301,-500.52765994,0.00016973,2]
[351639738,1738680650311,-522.64537694,0.00016973,2]
[351639739,1738680650320,-500.0,0.00016986,2]
[351639740,1738680650330,-500.0,0.00016986,2]
[351639741,1738680650340,-900.01228066,0.00016986,2]
[351639742,1738680650349,-515.0,0.00016986,2]
[351639743,1738680650359,-973.5649189,0.00016986,2]
[351639744,1738680650369,-500.0,0.00016986,2]
[351639745,1738680650379,-500.0,0.00016986,2]
[351639746,1738680650391,-500.0,0.00016986,2]
[351639747,1738680650401,-395.82129603,0.00016986,2]
[351639748,1738680650411,-500.0,0.00016986,2]
[351639749,1738680650420,-500.0,0.00016986,2]
[351639750,1738680650430,-500.0,0.00016986,2]
[351639751,1738680650440,-500.0,0.00016986,2]
[351639752,1738680650451,-500.0,0.00016986,2]
[351639753,1738680650460,-1883.41,0.00016986,2]
[351639754,1738680650470,-500.0,0.00016986,2]
[351639755,1738680650479,-500.0,0.00016986,2]
[351639756,1738680650489,-500.0,0.00016986,2]
[351639757,1738680650499,-500.0,0.00016986,2]
[351639758,1738680650509,-500.0,0.00016986,2]
[351639759,1738680650519,-500.0,0.00016986,2]
[351639760,1738680650529,-500.0,0.00016986,2]
[351639761,1738680650539,-1423.73,0.00016986,2]
[351639762,1738680650549,-1556.45,0.00016986,2]
[351639763,1738680650559,-855.45,0.00016986,2]
[351639764,1738680650568,-516.17,0.00016986,2]
[351639765,1738680650577,-500.0,0.00016986,2]
[351639766,1738680650587,-500.0,0.00016986,2]
[351639767,1738680650596,-500.0,0.00016986,2]
[351639768,1738680650606,-500.0,0.00016986,2]
[351639769,1738680650615,-500.0,0.00016986,2]
[351639770,1738680650625,-500.0,0.00016986,2]
[351639771,1738680650634,-1262.27,0.00016986,2]
[351639772,1738680650652,-618.55,0.00016986,2]
[351639773,1738680650661,-1635.09,0.00016986,2]
[351639774,1738680650810,-3788.74,0.00016986,2]
[351639775,1738680650821,-500.0,0.00016986,2]
[351639776,1738680650830,-680.44,0.00016986,2]
[351639777,1738680650840,-500.0,0.00016986,2]
[351639778,1738680650850,-500.0,0.00016986,2]
[351639779,1738680650859,-610.23,0.00016986,2]
[351639780,1738680650870,-695.79,0.00016986,2]
[351639781,1738680650879,-500.0,0.00016986,2]
[351639782,1738680650892,-673.41,0.00016986,2]
[351639783,1738680650901,-525.38,0.00016986,2]
[351639784,1738680650911,-500.0,0.00016986,2]
[351639785,1738680650920,-500.0,0.00016986,2]
[351639786,1738680650930,-500.0,0.00016986,2]
[351639787,1738680650940,-1223.08,0.00016986,2]
[351639788,1738680650949,-578.29,0.00016986,2]
[351639789,1738680650959,-500.0,0.00016986,2]
[351639790,1738680650969,-500.0,0.00016986,2]
[351639791,1738680650979,-699.64,0.00016986,2]
[351639792,1738680650988,-500.0,0.00016986,2]
[351639793,1738680651000,-500.0,0.00016986,2]
[351639794,1738680651010,-500.0,0.00016986,2]
[351639795,1738680651020,-1007.47,0.00016986,2]
[351639796,1738680651030,-500.0,0.00016986,2]
[351639797,1738680651040,-637.90186043,0.00016986,2]
[351639798,1738680651049,-500.0,0.00016986,2]
[351639799,1738680651059,-500.0,0.00016986,2]
[351639800,1738680651068,-500.0,0.00016986,2]
[351639801,1738680651079,-500.0,0.00016986,2]
[351639802,1738680651088,-500.0,0.00016986,2]
[351639803,1738680651097,-500.0,0.00016986,2]
[351639804,1738680651107,-500.0,0.00016986,2]
[351639805,1738680651116,-500.0,0.00016986,2]
[351639806,1738680651126,-1469.21,0.00016986,2]
[351639807,1738680651135,-1289.06,0.00016986,2]
[351639808,1738680651151,-500.0,0.00016986,2]
[351639809,1738680651160,-500.0,0.00016986,2]
[351639810,1738680651171,-500.0,0.00016986,2]
[351639811,1738680651180,-500.0,0.00016986,2]
[351639812,1738680651190,-1139.31,0.00016986,2]
[351639813,1738680651199,-500.0,0.00016986,2]
[351639814,1738680651208,-500.0,0.00016986,2]
[351639815,1738680651217,-500.0,0.00016986,2]
[351639816,1738680651227,-500.0,0.00016986,2]
[351639817,1738680651236,-1765.65,0.00016986,2]
[351639818,1738680651246,-4854.48,0.00016986,2]
[351639819,1738680651255,-500.0,0.00016986,2]
[351639820,1738680651264,-500.0,0.00016986,2]
[351639821,1738680651274,-1238.52,0.00016986,2]
[351639822,1738680651285,-1866.5,0.00016986,2]
[351639823,1738680651295,-557.58,0.00016986,2]
[351639824,1738680651304,-1516.87,0.00016986,2]
[351639825,1738680651313,-1403.01,0.00016986,2]
[351639826,1738680651322,-383.50603699,0.00016986,2]
[351639827,1738680651332,-500.0,0.00016986,2]
[351639828,1738680651342,-500.0,0.00016986,2]
[351639829,1738680651352,-1204.77,0.00016986,2]
[351639830,1738680651362,-500.0,0.00016986,2]
[351639831,1738680651371,-880.63,0.00016986,2]
[351639832,1738680651381,-500.0,0.00016986,2]
[351639833,1738680651391,-1829.98,0.00016986,2]
[351639834,1738680651400,-500.0,0.00016986,2]
[351639835,1738680651410,-500.0,0.00016986,2]
[351639836,1738680651420,-500.0,0.00016986,2]
[351639837,1738680651429,-500.0,0.00016986,2]
[351639838,1738680651439,-500.0,0.00016986,2]
[351639839,1738680651448,-500.0,0.00016986,2]
[351639840,1738680651458,-500.0,0.00016986,2]
[351639841,1738680651467,-500.0,0.00016986,2]
[351639842,1738680651477,-2810.39,0.00016986,2]
[351639843,1738680651486,-456.5895154,0.00016986,2]
[351639844,1738680651495,-1805.39,0.00016986,2]
[351639845,1738680651508,-8022.09,0.00016986,2]
[351639846,1738680651518,-500.0,0.00016986,2]
[351639847,1738680651527,-500.0,0.00016986,2]
[351639848,1738680651537,-1713.77,0.00016986,2]
[351639849,1738680651547,-12512.67,0.00016986,2]
[351639850,1738680651557,-1368.93,0.00016986,2]
[351639851,1738680651566,-1365.65,0.00016986,2]
[351639852,1738680651576,-500.0,0.00016986,2]
[351639853,1738680651586,-1309.33,0.00016986,2]
[351639854,1738680651596,-500.0,0.00016986,2]
[351639855,1738680651606,-500.0,0.00016986,2]
[351639856,1738680651615,-500.0,0.00016986,2]
[351639857,1738680651626,-3808.05,0.00016986,2]
[351639858,1738680651635,-500.0,0.00016986,2]
[351639859,1738680651647,-643.47,0.00016986,2]
[351639860,1738680651657,-500.0,0.00016986,2]
[351639861,1738680651666,-500.0,0.00016986,2]
[351639862,1738680651676,-500.0,0.00016986,2]
[351639863,1738680651686,-539.93,0.00016986,2]
[351639864,1738680651696,-500.0,0.00016986,2]
[351639865,1738680651706,-500.0,0.00016986,2]
[351639866,1738680651717,-500.0,0.00016986,2]
[351639867,1738680651727,-2463.36,0.00016986,2]
[351639868,1738680651738,-1787.01,0.00016986,2]
[351639869,1738680651747,-500.0,0.00016986,2]
[351639870,1738680651758,-500.0,0.00016986,2]
[351639871,1738680651768,-3139.64,0.00016986,2]
[351639872,1738680651777,-3415.22,0.00016986,2]
[351639873,1738680651787,-500.0,0.00016986,2]
[351639874,1738680651796,-4485.55,0.00016986,2]
[351639875,1738680651806,-765.54,0.00016986,2]
[351639876,1738680651816,-6198.42,0.00016986,2]
[351639877,1738680651826,-1904.81,0.00016986,2]
[351639878,1738680651836,-1584.76,0.00016986,2]
[351639879,1738680651846,-1313.56,0.00016986,2]
[351639880,1738680651855,-500.0,0.00016986,2]
[351639881,1738680651864,-850.88,0.00016986,2]
[351639882,1738680651874,-500.0,0.00016986,2]
[351639883,1738680651884,-500.0,0.00016986,2]
[351639884,1738680651897,-2058.31,0.00016986,2]
[351639885,1738680651907,-500.0,0.00016986,2]
[351639886,1738680651917,-500.0,0.00016986,2]
[351639887,1738680651927,-1171.46,0.00016986,2]
[351639888,1738680651937,-1282.64,0.00016986,2]
[351639889,1738680651946,-179.93861544,0.00016986,2]
[351639890,1738680651957,-500.0,0.00016986,2]
[351639891,1738680651967,-500.0,0.00016986,2]
[351639892,1738680651977,-1934.6,0.00016986,2]
[351639893,1738680651987,-500.0,0.00016986,2]
[351639894,1738680651997,-3826.4,0.00016986,2]
[351639895,1738680652009,-17462.03,0.00016986,2]
[351639896,1738680652019,-1000.0,0.00017,17]
[351639897,1738680652029,-7481.18,0.00017,2]
[351639898,1738680652039,-226143.868787,0.00017,2]
[351639899,1738680652334,-3543.7050126,0.00017,2]
[351639900,1738680652889,-42852.67,0.00016438,2]
[351639901,1738680652904,-500.0,0.00016438,2]
[351639902,1738680652914,-42852.67,0.00016575,2]
[351639903,1738680652923,-42852.67,0.00016712,2]
[351639904,1738680652932,-42852.67,0.00016849,2]
[351639905,1738680652942,-42852.67,0.00016986,2]
[351639906,1738680652951,-872404.36610878,0.00017,2]
[351639907,1738680653351,-500.0,0.00016438,2]
[351639908,1738680653360,-25.49999982,0.00016438,2]
[351639909,1738680653373,-474.50000018,0.00016438,2]
[351639910,1738680653382,-500.0,0.00016575,2]
[351639911,1738680653396,-500.0,0.00016712,2]
[351639912,1738680653406,-369157.94081382,0.00017,2]
[351639913,1738680653588,-153.0,0.00016358,2]
[351639914,1738680653600,-205.47765898,0.00016849,2]
[351639915,1738680653611,-10313.72966102,0.00017,2]
[351639916,1738680653622,-2093.12841,0.00017,2]
[351639918,1738680688747,500.0,0.00014164,2]
[351639920,1738681152969,179.796392,0.00013973,2]
[351639926,1738681594139,-288.5156326,0.00015371,2]
[351639927,1738681594160,-183.59344754,0.00016,2]
[351639928,1738681594181,-1126.8742391,0.00016138,2]
[351639929,1738681594203,-160.258,0.0001615,2]
[351639930,1738681594225,-1126.8742391,0.00016238,2]
[351639931,1738681594254,-1126.8742391,0.00016338,2]
[351639932,1738681594278,-300.0,0.00016399,2]
[351639933,1738681594305,-3000.0,0.000164,2]
[351639934,1738681594328,-3344.0,0.000164,14]
[351639935,1738681594352,-3000.0,0.0001641,2]
[351639936,1738681594376,-600.12580656,0.0001642,2]
[351639985,1738681832732,-461.92626546,0.00016338,2]
[351639987,1738681832742,-996.58919844,0.0001642,2]
[351640249,1738681838737,-1403.284995,0.0001642,2]
[351640251,1738681838747,-3000.0,0.0001643,2]
[351640253,1738681838758,-396.0,0.00016432,2]
[351640255,1738681838767,-300.0,0.00016432,2]
[351640257,1738681838776,-150.0,0.00016433,2]
[351640259,1738681838786,-1974.0,0.00016433,2]
[351640261,1738681838795,-537.0,0.00016433,2]
[351640263,1738681838804,-2298.0,0.00016433,2]
[351640265,1738681838814,-1126.8742391,0.00016438,2]
[351640267,1738681838823,-325.16079662,0.00016438,2]
[351640269,1738681838832,-500.0,0.00016438,2]
[351640271,1738681838841,-190.81073941,0.00016438,2]
[351640273,1738681838851,-430.72343949,0.00016438,2]
[351640275,1738681838860,-500.0,0.00016438,2]
[351640277,1738681838869,-260.12197243,0.00016438,2]
[351640279,1738681838879,-500.0,0.00016438,2]
[351640281,1738681838888,-500.0,0.00016438,2]
[351640283,1738681838898,-500.0,0.00016438,2]
[351640285,1738681838907,-500.0,0.00016438,2]
[351640287,1738681838916,-500.0,0.00016438,2]
[351640289,1738681838925,-500.0,0.00016438,2]
[351640291,1738681838937,-356.163136,0.00016438,2]
[351640293,1738681838946,-500.0,0.00016438,2]
[351640295,1738681838955,-500.0,0.00016438,2]
[351640297,1738681838964,-1127.12,0.00016438,2]
[351640299,1738681838974,-1232.19,0.00016438,2]
[351640301,1738681838984,-500.0,0.00016438,2]
[351640303,1738681838994,-500.0,0.00016438,2]
[351640305,1738681839003,-500.0,0.00016438,2]
[351640307,1738681839012,-500.0,0.00016438,2]
[351640309,1738681839021,-500.0,0.00016438,2]
[351640311,1738681839031,-677.23,0.00016438,2]
[351640313,1738681839040,-500.0,0.00016438,2]
[351640315,1738681839049,-1294.44,0.00016438,2]
[351640317,1738681839058,-500.0,0.00016438,2]
[351640319,1738681839068,-500.0,0.00016438,2]
[351640321,1738681839077,-500.0,0.00016438,2]
[351640323,1738681839086,-538.68,0.00016438,2]
[351640325,1738681839095,-500.0,0.00016438,2]
[351640327,1738681839104,-500.0,0.00016438,2]
[351640329,1738681839114,-500.0,0.00016438,2]
[351640331,1738681839124,-550.84,0.00016438,2]
[351640333,1738681839133,-500.0,0.00016438,2]
[351640335,1738681839143,-999.3,0.00016438,2]
[351640337,1738681839152,-500.0,0.00016438,2]
[351640339,1738681839161,-2999.41,0.00016438,2]
[351640341,1738681839174,-500.0,0.00016438,2]
[351640343,1738681839186,-500.0,0.00016438,2]
[351640345,1738681839195,-390.16312571,0.00016438,2]
[351640347,1738681839204,-500.0,0.00016438,2]
[351640349,1738681839214,-500.0,0.00016438,2]
[351640351,1738681839224,-533.12,0.00016438,2]
[351640353,1738681839234,-500.0,0.00016438,2]
[351640355,1738681839243,-500.0,0.00016438,2]
[351640357,1738681839253,-500.0,0.00016438,2]
[351640359,1738681839262,-500.0,0.00016438,2]
[351640361,1738681839272,-500.0,0.00016438,2]
[351640363,1738681839282,-500.0,0.00016438,2]
[351640365,1738681839291,-500.0,0.00016438,2]
[351640367,1738681839301,-968.27,0.00016438,2]
[351640369,1738681839310,-500.0,0.00016438,2]
[351640370,1738681839319,-500.0,0.00016438,2]
[351640371,1738681839329,-500.0,0.00016438,2]
[351640373,1738681839338,-500.0,0.00016438,2]
[351640375,1738681839348,-500.0,0.00016438,2]
[351640377,1738681839358,-500.0,0.00016438,2]
[351640379,1738681839368,-797.58,0.00016438,2]
[351640381,1738681839378,-500.0,0.00016438,2]
[351640383,1738681839389,-553.89,0.00016438,2]
[351640385,1738681839398,-500.0,0.00016438,2]
[351640387,1738681839407,-500.69347513,0.00016438,2]
[351640389,1738681839416,-500.0,0.00016438,2]
[351640391,1738681839427,-500.0,0.00016438,2]
[351640393,1738681839440,-1629.5,0.00016438,2]
[351640394,1738681839450,-500.0,0.00016438,2]
[351640395,1738681839459,-500.0,0.00016438,2]
[351640397,1738681839469,-500.0,0.00016438,2]
[351640399,1738681839479,-1163.12,0.00016438,2]
[351640401,1738681839489,-717.9,0.00016438,2]
[351640403,1738681839499,-500.0,0.00016438,2]
[351640405,1738681839508,-500.0,0.00016438,2]
[351640407,1738681839517,-1531.56,0.00016438,2]
[351640409,1738681839527,-500.0,0.00016438,2]
[351640411,1738681839536,-500.0,0.00016438,2]
[351640413,1738681839546,-1020.51,0.00016438,2]
[351640415,1738681839556,-500.0,0.00016438,2]
[351640417,1738681839566,-16318.68,0.00016438,2]
[351640419,1738681839575,-927.41,0.00016438,2]
[351640421,1738681839585,-500.0,0.00016438,2]
[351640423,1738681839594,-500.0,0.00016438,2]
[351640425,1738681839603,-500.0,0.00016438,2]
[351640427,1738681839612,-500.0,0.00016438,2]
[351640429,1738681839622,-500.0,0.00016438,2]
[351640431,1738681839770,-42905.46,0.00016438,2]
[351640432,1738681839780,-500.0,0.00016438,2]
[351640433,1738681839789,-500.0,0.00016438,2]
[351640434,1738681839798,-3843.13,0.00016438,2]
[351640435,1738681839807,-1015.42,0.00016438,2]
[351640436,1738681839816,-901.96,0.00016438,2]
[351640437,1738681839825,-1397.81,0.00016438,2]
[351640438,1738681839835,-500.0,0.00016438,2]
[351640439,1738681839844,-500.0,0.00016438,2]
[351640440,1738681839853,-3029.23,0.00016438,2]
[351640441,1738681839863,-500.0,0.00016438,2]
[351640442,1738681839872,-500.0,0.00016438,2]
[351640443,1738681839881,-980.49,0.00016438,2]
[351640444,1738681839891,-500.0,0.00016438,2]
[351640445,1738681839900,-1477.65,0.00016438,2]
[351640446,1738681839909,-500.0,0.00016438,2]
[351640448,1738681839920,-1110.71,0.00016438,2]
[351640450,1738681839930,-1200.86,0.00016438,2]
[351640452,1738681839948,-500.0,0.00016438,2]
[351640454,1738681839958,-697.17,0.00016438,2]
[351640456,1738681839968,-500.0,0.00016438,2]
[351640458,1738681839977,-953.78,0.00016438,2]
[351640461,1738681839987,-500.0,0.00016438,2]
[351640464,1738681839997,-500.0,0.00016438,2]
[351640467,1738681840008,-1448.74,0.00016438,2]
[351640471,1738681840019,-500.0,0.00016438,2]
[351640473,1738681840029,-540.94210851,0.00016438,2]
[351640475,1738681840039,-500.0,0.00016438,2]
[351640477,1738681840049,-2224.89,0.00016438,2]
[351640479,1738681840059,-500.0,0.00016438,2]
[351640481,1738681840069,-500.0,0.00016438,2]
[351640482,1738681840079,-500.0,0.00016438,2]
[351640484,1738681840089,-500.0,0.00016438,2]
[351640485,1738681840098,-1356.74,0.00016438,2]
[351640486,1738681840108,-500.0,0.00016438,2]
[351640487,1738681840118,-1429.26,0.00016438,2]
[351640488,1738681840128,-6350.82,0.00016438,2]
[351640489,1738681840138,-500.0,0.00016438,2]
[351640490,1738681840147,-500.0,0.00016438,2]
[351640491,1738681840157,-1081.14,0.00016438,2]
[351640492,1738681840166,-1083.74,0.00016438,2]
[351640493,1738681840176,-500.0,0.00016438,2]
[351640494,1738681840192,-2703.72,0.00016438,2]
[351640495,1738681840201,-9905.86,0.00016438,2]
[351640496,1738681840211,-500.0,0.00016438,2]
[351640497,1738681840220,-500.0,0.00016438,2]
[351640498,1738681840229,-500.0,0.00016438,2]
[351640499,1738681840239,-3014.71,0.00016438,2]
[351640500,1738681840248,-500.0,0.00016438,2]
[351640501,1738681840258,-500.0,0.00016438,2]
[351640503,1738681840267,-509.42,0.00016438,2]
[351640504,1738681840277,-1254.6,0.00016438,2]
[351640506,1738681840286,-1950.16,0.00016438,2]
[351640507,1738681840296,-1036.56,0.00016438,2]
[351640508,1738681840305,-673.62,0.00016438,2]
[351640510,1738681840315,-339.91960988,0.00016438,2]
[351640512,1738681840324,-397.16419567,0.00016438,2]
[351640514,1738681840334,-1414.72,0.00016438,2]
[351640516,1738681840344,-500.0,0.00016438,2]
[351640518,1738681840353,-1491.03,0.00016438,2]
[351640519,1738681840363,-500.0,0.00016438,2]
[351640521,1738681840377,-2485.55,0.00016438,2]
[351640523,1738681840387,-500.0,0.00016438,2]
[351640525,1738681840397,-606.05,0.00016438,2]
[351640527,1738681840407,-500.0,0.00016438,2]
[351640529,1738681840417,-4907.09,0.00016438,2]
[351640531,1738681840426,-500.0,0.00016438,2]
[351640533,1738681840439,-3551.06,0.00016438,2]
[351640535,1738681840449,-500.0,0.00016438,2]
[351640537,1738681840459,-187.09801408,0.00016438,2]
[351640539,1738681840468,-500.0,0.00016438,2]
[351640541,1738681840478,-1039.9,0.00016438,2]
[351640543,1738681840487,-500.0,0.00016438,2]
[351640545,1738681840497,-500.0,0.00016438,2]
[351640547,1738681840507,-500.0,0.00016438,2]
[351640549,1738681840517,-500.0,0.00016438,2]
[351640551,1738681840527,-1025.245,0.00016473,2]
[351640553,1738681840537,-7438.69753278,0.000165,2]
[351640556,1738681840548,-6000.0,0.000165,2]
[351640558,1738681840557,-1126.8742391,0.00016538,2]
[351640560,1738681840567,-461.92626543,0.00016561,2]
[351640561,1738681840576,-153.0,0.00016569,2]
[351640563,1738681840585,-500.0,0.00016575,2]
[351640565,1738681840594,-500.0,0.00016575,2]
[351640567,1738681840603,-500.0,0.00016575,2]
[351640569,1738681840613,-500.0,0.00016575,2]
[351640572,1738681840622,-500.0,0.00016575,2]
[351640575,1738681840631,-500.0,0.00016575,2]
[351640578,1738681840641,-500.0,0.00016575,2]
[351640580,1738681840651,-500.0,0.00016575,2]
[351640582,1738681840660,-1127.12,0.00016575,2]
[351640584,1738681840670,-1232.19,0.00016575,2]
[351640586,1738681840679,-500.0,0.00016575,2]
[351640588,1738681840691,-500.0,0.00016575,2]
[351640590,1738681840700,-500.0,0.00016575,2]
[351640592,1738681840710,-500.0,0.00016575,2]
[351640594,1738681840719,-500.0,0.00016575,2]
[351640596,1738681840728,-677.23,0.00016575,2]
[351640598,1738681840737,-500.0,0.00016575,2]
[351640600,1738681840747,-1294.44,0.00016575,2]
[351640603,1738681840757,-500.0,0.00016575,2]
[351640605,1738681840766,-500.0,0.00016575,2]
[351640607,1738681840776,-538.68,0.00016575,2]
[351640608,1738681840785,-500.0,0.00016575,2]
[351640609,1738681840795,-500.0,0.00016575,2]
[351640611,1738681840804,-500.0,0.00016575,2]
[351640613,1738681840813,-550.84,0.00016575,2]
[351640616,1738681840826,-500.0,0.00016575,2]
[351640617,1738681840839,-999.3,0.00016575,2]
[351640619,1738681840849,-500.0,0.00016575,2]
[351640621,1738681840859,-2999.41,0.00016575,2]
[351640623,1738681840868,-500.0,0.00016575,2]
[351640625,1738681840878,-500.0,0.00016575,2]
[351640627,1738681840887,-500.0,0.00016575,2]
[351640629,1738681840897,-500.0,0.00016575,2]
[351640631,1738681840906,-533.12,0.00016575,2]
[351640633,1738681840916,-500.0,0.00016575,2]
[351640635,1738681840925,-500.0,0.00016575,2]
[351640637,1738681840937,-500.0,0.00016575,2]